bitfinex/quotes_SOLUSD_20240906
["timestamp","ask_amount","ask_price","bid_price","bid_amount"]
[1725609969132,7.7826,128.5,128.47,19.4583]
[1725609969837,0.4338753,128.54,128.49,19.4566]
[1725609970243,0.4338753,128.54,128.51,7.7814]
[1725609970244,7.7799,128.54,128.51,7.7814]
[1725609970638,7.7799,128.54,128.52,45.0]
[1725609970940,7.7799,128.54,128.51,45.0]
[1725609971148,20.0,128.53,128.51,45.0]
[1725609972229,27.7803,128.53,128.51,45.0]
[1725609972638,20.0,128.53,128.51,64.4532]
[1725609972834,0.4338753,128.56,128.51,64.4532]
[1725609973029,7.7796,128.54,128.51,64.4532]
[1725609973243,20.0,128.53,128.51,64.4532]
[1725609974758,20.0,128.53,128.51,72.2346]
[1725609976049,20.0,128.53,128.51,64.4532]
[1725609976745,20.0,128.53,128.48,38.9155]
[1725609976746,20.4338753,128.53,128.48,19.4568]
[1725609976929,7.7812,128.52,128.49,9.53985579]
[1725609977243,7.7812,128.52,128.48,27.2396]
[1725609977550,7.7812,128.52,128.49,9.53993748]
[1725609977844,8.2154753,128.51,128.48,19.4568]
[1725609978050,36.3977753,128.54,128.49,9.53944421]
[1725609978224,7.7812,128.52,128.5,45.0]
[1725609978545,8.2150753,128.52,128.49,45.0]
[1725609979027,7.7815,128.51,128.49,45.0]
[1725609979847,19.4525,128.52,128.47,7.7838]
[1725609980057,7.7819,128.51,128.48,9.53919252]
[1725609980237,20.0,128.51,128.46,4.82559062]
[1725609980438,20.0,128.51,128.47,14.36328716]
[1725609980744,7.7791,128.55,128.51,7.7813]
[1725609980953,8.2127753,128.56,128.51,19.4534]
[1725609981136,8.2127753,128.56,128.52,45.0]
[1725609982023,15.4496753,128.57,128.52,52.7806]
[1725609982247,8.2112753,128.58,128.53,20.29755369]
[1725609982562,8.2112753,128.58,128.54,45.0]
[1725609983131,0.4338753,128.58,128.54,45.0]
[1725609983345,0.4338753,128.59,128.53,45.0]
[1725609984143,20.4338753,128.59,128.52,45.0]
[1725609984328,7.778,128.57,128.52,52.7807]
[1725609984536,20.0,128.56,128.53,7.7801]
[1725609984746,20.0,128.56,128.54,45.0]
[1725609985744,7.778,128.57,128.54,45.0]
[1725609985943,7.7773,128.58,128.54,45.0]
[1725609986145,20.0,128.57,128.54,45.0]
[1725609986356,0.4338753,128.63,128.55,50.0]
[1725609986657,7.7737,128.64,128.6,7.7758]
[1725609986860,23.0135,128.68,128.61,45.0]
[1725609986861,7.7731,128.65,128.61,45.0]
[1725609987228,7.7731,128.65,128.59,50.0]
[1725609987229,7.7731,128.65,128.6,45.0]
[1725609987442,7.7725,128.66,128.61,9.55216159]
[1725609987647,7.7725,128.66,128.62,45.0]
[1725609987853,0.4338753,128.65,128.62,45.0]
[1725609988036,0.4338753,128.68,128.61,45.0]
[1725609988354,7.7737,128.64,128.61,45.0]
[1725609988947,7.7731,128.65,128.61,45.0]
[1725609989150,7.7731,128.65,128.61,52.7754]
[1725609990341,7.7731,128.65,128.61,45.0]
[1725609991243,7.7737,128.64,128.61,45.0]
[1725609996278,7.7731,128.65,128.61,52.7753]
[1725609996961,7.7725,128.66,128.62,7.7748]
[1725609997293,7.7725,128.66,128.63,45.0]
[1725609999858,7.772,128.67,128.63,52.7742]
[1725610000479,8.2066753,128.66,128.63,45.0]
[1725610000778,7.7728,128.66,128.63,45.0]
[1725610002473,7.7736,128.65,128.63,45.0]
[1725610002984,0.4338753,128.68,128.63,45.0]
[1725610002985,7.7725,128.66,128.63,45.0]
[1725610003563,7.7718,128.67,128.64,7.7733]
[1725610003775,7.7718,128.67,128.65,45.0]
[1725610004484,7.7718,128.67,128.64,45.0]
[1725610004653,7.7724,128.66,128.64,45.0]
[1725610006561,7.773,128.65,128.64,45.0]
[1725610006774,7.773,128.65,128.63,45.0]
[1725610006991,7.7745,128.63,128.6,19.4387]
[1725610007281,7.7745,128.63,128.59,7.7762]
[1725610010070,7.7745,128.63,128.6,45.0]
[1725610010586,7.7754,128.61,128.6,45.0]
[1725610010788,7.7756,128.61,128.57,7.7775]
[1725610011165,0.4338753,128.6,128.54,19.4491]
[1725610011885,7.7773,128.58,128.54,27.2282]
[1725610012268,7.7767,128.59,128.54,19.4491]
[1725610012475,7.7762,128.6,128.56,7.7783]
[1725610012679,7.7762,128.6,128.57,45.0]
[1725610013994,7.7771,128.59,128.57,45.0]
[1725610014298,7.778,128.57,128.53,7.78]
[1725610014585,7.778,128.57,128.52,25.5595]
[1725610014586,0.4338753,128.56,128.52,27.2329]
[1725610014768,20.4338753,128.58,128.52,19.4521]
[1725610014970,0.4338753,128.57,128.52,19.4521]
[1725610015379,7.7791,128.55,128.52,19.4521]
[1725610015762,7.7791,128.55,128.52,27.2329]
[1725610016176,7.7791,128.55,128.53,45.0]
[1725610017796,7.7786,128.56,128.53,45.0]
[1725610018088,7.778,128.57,128.53,52.7798]
[1725610018294,20.0,128.56,128.54,7.7796]
[1725610018502,20.0,128.56,128.55,52.779]
[1725610018994,7.7764,128.6,128.56,7.7784]
[1725610019190,7.7767,128.59,128.57,45.0]
[1725610019397,0.4338753,128.61,128.57,45.0]
[1725610019586,7.7769,128.59,128.56,45.0]
[1725610020401,7.7773,128.58,128.56,45.0]
[1725610020576,7.7773,128.58,128.55,54.33453907]
[1725610020988,7.7768,128.59,128.55,54.33453907]
[1725610021183,7.7768,128.59,128.55,52.779]
[1725610022405,7.7773,128.58,128.55,45.0]
[1725610023395,7.7786,128.56,128.52,7.7805]
[1725610023596,7.7786,128.56,128.51,36.1012]
[1725610024611,7.7779,128.57,128.53,7.7802]
[1725610025292,7.7779,128.57,128.54,45.0]
[1725610025995,8.2123753,128.56,128.54,45.0]
[1725610026305,28.2133753,128.55,128.53,45.0]
[1725610026514,27.7795,128.55,128.52,45.0]
[1725610028096,27.7795,128.55,128.52,52.7808]
[1725610028592,8.2114753,128.58,128.54,7.7796]
[1725610028800,7.7776,128.58,128.55,45.0]
[1725610029186,7.7776,128.58,128.56,1.55428956]
[1725610030093,7.7776,128.58,128.55,45.0]
[1725610030295,8.2117753,128.57,128.55,45.0]
[1725610030491,8.2117753,128.57,128.53,27.2305]
[1725610030492,0.4338753,128.59,128.54,45.0]
[1725610030682,7.7784,128.56,128.54,45.0]
[1725610030885,0.4338753,128.58,128.5,15.20089755]
[1725610031113,7.78,128.54,128.51,19.4535]
[1725610031329,7.78,128.54,128.5,7.7818]
[1725610032699,7.78,128.54,128.51,45.0]
[1725610033206,7.7803,128.53,128.51,45.0]
[1725610034605,7.7799,128.54,128.51,45.0]
[1725610034810,15.6533,128.56,128.51,64.4532]
[1725610035028,20.0,128.55,128.51,64.4532]
[1725610035417,27.7794,128.55,128.51,72.2344]
[1725610036627,7.7798,128.54,128.51,72.2344]
[1725610036831,7.7798,128.54,128.51,45.0]
[1725610036832,7.7802,128.53,128.51,45.0]
[1725610037209,8.2150753,128.52,128.48,7.783]
[1725610037434,7.7812,128.52,128.48,7.783]
[1725610037720,7.7816,128.51,128.48,7.783]
[1725610038619,7.7811,128.52,128.49,45.0]
[1725610040737,7.7805,128.53,128.49,72.2389]
[1725610042507,0.4338753,128.54,128.5,7.7817]
[1725610042508,7.78,128.54,128.5,7.7817]
[1725610042717,15.6533,128.56,128.5,7.7817]
[1725610042718,15.6533,128.56,128.51,45.0]
[1725610042920,15.6533,128.56,128.51,52.7812]
[1725610042921,7.7792,128.55,128.51,52.7812]
[1725610043124,7.7796,128.54,128.51,45.0]
[1725610043531,7.7796,128.54,128.51,52.7813]
[1725610044114,8.2131753,128.55,128.51,52.7813]
[1725610045433,7.7793,128.55,128.51,52.7813]
[1725610047537,7.7802,128.53,128.51,45.0]
[1725610048145,0.4338753,128.57,128.47,19.4583]
[1725610048314,0.4338753,128.57,128.47,27.2418]
[1725610048315,7.7816,128.51,128.47,27.2418]
[1725610049538,7.7816,128.51,128.48,45.0]
[1725610049754,7.7813,128.52,128.48,52.7829]
[1725610050117,0.4338753,128.56,128.51,7.781]
[1725610050340,20.0,128.57,128.51,7.781]
[1725610050341,8.2120753,128.57,128.53,7.7802]
[1725610050543,7.7774,128.58,128.54,52.7796]
[1725610050840,7.7774,128.58,128.55,45.0]
[1725610052322,8.2117753,128.57,128.55,45.0]
[1725610052638,7.7779,128.57,128.54,45.0]
[1725610052838,0.4338753,128.56,128.54,45.0]
[1725610053036,7.7802,128.53,128.52,5.70879137]
[1725610053237,19.4478,128.55,128.47,31.44943937]
[1725610053428,7.7827,128.49,128.46,21.98515437]
[1725610053744,7.7827,128.49,128.46,16.2698]
[1725610054150,7.7827,128.49,128.45,13.50003484]
[1725610054649,7.7822,128.5,128.46,8.94538808]
[1725610054825,7.7822,128.5,128.46,7.7844]
[1725610055966,0.4338753,128.49,128.45,5.7176492]
[1725610056140,0.4338753,128.49,128.44,2.4614709]
[1725610056334,7.7839,128.47,128.44,2.4614709]
[1725610056970,7.7834,128.48,128.44,10.2470709]
[1725610057132,7.784,128.47,128.44,2.4614709]
[1725610057963,0.4338753,128.46,128.44,2.4614709]
[1725610058278,7.7851,128.45,128.44,2.4614709]
[1725610058433,27.7851,128.45,128.44,2.4614709]
[1725610059554,20.0,128.45,128.44,2.4614709]
[1725610060261,20.0,128.45,128.44,47.4614709]
[1725610061130,200.1958291,128.44,128.43,4.82618932]
[1725610063452,200.1958291,128.44,128.43,57.61248932]
[1725610065342,200.1958291,128.44,128.43,52.7863]
[1725610065571,183.5292291,128.44,128.43,59.4506]
[1725610065767,183.5292291,128.44,128.43,74.5871]
[1725610067962,183.5292291,128.44,128.43,76.14391611]
[1725610068451,183.5292291,128.44,128.43,81.84673069]
[1725610069070,183.5292291,128.44,128.43,91.3512939]
[1725610069568,183.5292291,128.44,128.43,110.8170939]
[1725610069868,183.5292291,128.44,128.43,109.26027779]
[1725610071277,183.5292291,128.44,128.43,146.16126924]
[1725610071473,183.5292291,128.44,128.43,155.67528299]
[1725610071957,183.25488422,128.44,128.43,158.11097123]
[1725610073377,183.25488422,128.44,128.43,155.66439592]
[1725610073579,183.25488422,128.44,128.43,158.09792583]
[1725610074287,183.25488422,128.44,128.43,158.09719369]
[1725610075765,183.25488422,128.44,128.43,162.88031239]
[1725610076283,183.25488422,128.44,128.43,146.15093154]
[1725610076480,183.25488422,128.44,128.43,162.86378397]
[1725610077279,183.25488422,128.44,128.43,155.64974522]
[1725610077478,183.25488422,128.44,128.43,158.08082496]
[1725610077662,183.25488422,128.44,128.43,162.86268645]
[1725610078059,183.25488422,128.44,128.43,144.04922341]
[1725610078371,183.25488422,128.44,128.43,146.3302257]
[1725610078793,183.25488422,128.44,128.43,153.53923127]
[1725610078973,183.25488422,128.44,128.43,153.53915874]
[1725610079562,183.25488422,128.44,128.43,144.03813327]
[1725610079770,183.25488422,128.44,128.43,49.62069939]
[1725610080002,183.25488422,128.44,128.43,34.45521811]
[1725610080176,183.25488422,128.44,128.43,32.0274492]
[1725610080386,183.25488422,128.44,128.43,27.2521]
[1725610081799,183.25488422,128.44,128.43,72.2521]
[1725610082162,183.25488422,128.44,128.43,27.2521]
[1725610083271,183.25488422,128.44,128.43,72.2521]
[1725610084670,183.25488422,128.44,128.43,64.4658]
[1725610084884,183.25488422,128.44,128.43,72.2521]
[1725610085995,183.25488422,128.44,128.43,64.4658]
[1725610086161,183.25488422,128.44,128.43,45.0]
[1725610086888,183.25488422,128.44,128.41,27.2561]
[1725610087405,183.25488422,128.44,128.41,19.4687]
[1725610087564,183.25488422,128.44,128.43,7.7863]
[1725610088495,183.25488422,128.44,128.43,52.7863]
[1725610088877,153.25488422,128.44,128.43,69.3253]
[1725610089083,153.25488422,128.44,128.43,76.54167394]
[1725610090588,148.12338422,128.44,128.43,122.91404357]
[1725610090797,135.00928422,128.44,128.43,122.91404357]
[1725610090973,130.48708422,128.44,128.43,122.91404357]
[1725610091293,125.11068422,128.44,128.43,115.69766963]
[1725610091500,29.6231,128.57,128.52,19.4522]
[1725610091663,29.6231,128.57,128.53,45.0]
[1725610091962,21.8451,128.57,128.54,7.7795]
[1725610092972,0.70808301,128.6,128.54,7.7795]
[1725610092973,22.25758301,128.6,128.56,7.7784]
[1725610093204,0.70808301,128.59,128.55,7.7789]
[1725610093369,0.70808301,128.59,128.56,45.0]
[1725610093794,0.70808301,128.59,128.54,27.2283]
[1725610094101,7.7783,128.57,128.53,7.7802]
[1725610094334,0.70808301,128.56,128.52,7.7806]
[1725610095381,8.48658301,128.56,128.52,7.7806]
[1725610095576,7.7785,128.56,128.52,7.7806]
[1725610095777,7.7785,128.56,128.51,27.234]
[1725610095990,0.70808301,128.55,128.52,7.7807]
[1725610097297,7.7785,128.56,128.52,7.7807]
[1725610097607,7.7779,128.57,128.53,7.7801]
[1725610098891,7.7774,128.58,128.54,52.7795]
[1725610099215,20.0,128.57,128.54,52.7795]
[1725610100278,7.7774,128.58,128.54,52.7795]
[1725610100488,7.7778,128.57,128.54,52.7795]
[1725610100791,7.7778,128.57,128.54,45.0]
[1725610102379,7.7773,128.58,128.54,52.7792]
[1725610102579,7.7767,128.59,128.55,7.7787]
[1725610102994,29.3257,128.6,128.55,19.4475]
[1725610103303,21.5495,128.6,128.57,7.7778]
[1725610103675,7.7756,128.61,128.6,478.4505]
[1725610105497,27.7756,128.61,128.6,478.4505]
[1725610112423,22.9073,128.66,128.6,478.4505]
[1725610112646,0.70808301,128.68,128.62,19.4367]
[1725610112808,16.99688301,128.69,128.63,45.0]
[1725610113216,7.7695,128.71,128.66,7.7719]
[1725610113499,24.56898301,128.72,128.67,7.7717]
[1725610113706,7.7682,128.73,128.68,7.771]
[1725610113904,8.47628301,128.73,128.68,52.771]
[1725610115119,7.7682,128.73,128.69,7.7705]
[1725610115319,7.7682,128.73,128.7,45.0]
[1725610115702,0.8287083,128.74,128.7,45.0]
[1725610117307,0.8287083,128.74,128.7,72.1934]
[1725610119432,0.8287083,128.74,128.68,7.771]
[1725610119433,7.7686,128.73,128.68,7.771]
[1725610120629,7.7686,128.73,128.69,7.7704]
[1725610121128,7.7686,128.73,128.7,45.0]
[1725610121705,7.7686,128.73,128.68,7.7711]
[1725610122034,7.7693,128.72,128.68,7.771]
[1725610123347,7.7694,128.71,128.67,19.4288]
[1725610123633,7.7688,128.72,128.68,7.7711]
[1725610123810,7.7688,128.72,128.69,45.0]
[1725610124337,1.53679131,128.74,128.69,45.0]
[1725610124338,7.7682,128.73,128.69,52.7704]
[1725610124503,1.53679131,128.74,128.69,64.426]
[1725610124701,0.8287083,128.74,128.69,64.426]
[1725610125143,7.769,128.72,128.69,64.426]
[1725610132441,9.21138153,128.78,128.69,64.426]
[1725610132442,3.90620416,129.22,128.8,21.02166623]
[1725610132614,55.0,128.81,128.69,64.426]
[1725610132820,45.0,128.8,128.69,19.426]
[1725610134721,20.0,128.79,128.69,19.426]
[1725610134919,45.0,128.78,128.69,19.426]
[1725610135121,20.0,128.77,128.66,71.6553]
[1725610135338,6.4537,128.76,128.67,52.7717]
[1725610135523,20.0,128.75,128.67,52.7717]
[1725610135718,20.0,128.75,128.67,7.7717]
[1725610135927,20.0,128.75,128.68,7.7711]
[1725610136736,20.0,128.75,128.69,7.7705]
[1725610137444,20.0,128.77,128.69,7.7705]
[1725610137824,20.0,128.78,128.7,45.0]
[1725610138127,19.7,128.78,128.7,45.0]
[1725610140447,6.2292,128.79,128.71,7.769]
[1725610140830,3.03743512,128.81,128.72,15.1611]
[1725610141033,6.0415,128.82,128.74,7.7674]
[1725610141347,9.17645884,128.82,128.74,7.7674]
[1725610141757,9.17645884,128.82,128.72,40.8633]
[1725610142045,9.17645884,128.82,128.72,34.583]
[1725610142251,9.17645884,128.82,128.72,15.1611]
[1725610142422,45.0,128.81,128.72,15.1611]
[1725610143247,20.0,128.8,128.72,15.1611]
[1725610143453,45.0,128.79,128.72,15.1611]
[1725610143628,20.0,128.78,128.72,15.1611]
[1725610144658,7.7679,128.74,128.72,15.1611]
[1725610145036,7.7679,128.74,128.7,7.7698]
[1725610145234,19.4146,128.77,128.69,26.0656]
[1725610145438,7.7684,128.73,128.69,33.8362]
[1725610145938,7.7684,128.73,128.69,35.39003895]
[1725610146746,7.7684,128.73,128.69,33.8362]
[1725610146936,7.7684,128.73,128.7,52.77]
[1725610147137,7.7678,128.74,128.7,52.77]
[1725610147350,20.0,128.73,128.7,52.77]
[1725610149258,7.7688,128.72,128.69,33.836]
[1725610149642,7.7688,128.72,128.69,26.0656]
[1725610150654,20.0,128.73,128.69,26.0656]
[1725610150862,7.7679,128.74,128.7,52.7698]
[1725610151368,20.0,128.73,128.7,52.7698]
[1725610151564,27.7682,128.73,128.7,52.7698]
[1725610151941,27.7682,128.73,128.7,45.0]
[1725610153762,20.0,128.73,128.69,6.6405]
[1725610153939,7.7689,128.72,128.69,6.6405]
[1725610154146,7.7689,128.72,128.68,24.3947]
[1725610154352,7.7689,128.72,128.69,52.7704]
[1725610154540,20.0,128.74,128.69,52.7704]
[1725610154541,7.7683,128.73,128.69,52.7704]
[1725610154772,44.8237,128.8,128.7,50.0]
[1725610154968,7.7667,128.76,128.72,7.7684]
[1725610155160,7.766,128.77,128.73,8.7456936]
[1725610155467,7.766,128.77,128.74,0.97751766]
[1725610155766,7.7641,128.8,128.76,7.7661]
[1725610156756,7.7634,128.81,128.77,69.1996]
[1725610159584,7.7658,128.77,128.74,16.617]
[1725610160770,7.7665,128.76,128.74,16.617]
[1725610160952,7.766,128.77,128.74,17.73419072]
[1725610161266,7.766,128.77,128.74,16.617]
[1725610162955,7.7664,128.76,128.74,16.617]
[1725610163163,19.4133,128.78,128.71,15.6755]
[1725610163344,38.8213,128.8,128.71,15.6755]
[1725610163345,7.7686,128.73,128.71,15.6755]
[1725610163767,7.7686,128.73,128.72,2.42087174]
[1725610163972,27.7686,128.73,128.71,15.6755]
[1725610164163,7.7686,128.73,128.71,15.6755]
[1725610164359,7.7678,128.74,128.71,16.38017282]
[1725610164560,20.0,128.73,128.71,16.38017282]
[1725610165751,20.0,128.78,128.71,15.6755]
[1725610165957,7.7679,128.74,128.71,15.6755]
[1725610166173,20.0,128.73,128.71,15.6755]
[1725610166883,7.7679,128.74,128.71,15.6755]
[1725610167073,7.7671,128.75,128.71,23.4448]
[1725610167377,7.7671,128.75,128.72,45.0]
[1725610167779,7.7668,128.76,128.72,52.7686]
[1725610168080,20.0,128.75,128.72,52.7686]
[1725610169665,7.7668,128.76,128.73,7.7681]
[1725610169861,19.41,128.8,128.73,7.7681]
[1725610169862,7.766,128.77,128.73,7.7681]
[1725610170061,7.7664,128.76,128.73,7.7681]
[1725610170690,7.7658,128.77,128.73,7.7681]
[1725610170852,7.7654,128.78,128.74,52.7674]
[1725610171159,7.7649,128.79,128.75,7.7668]
[1725610171377,7.7649,128.79,128.76,45.0]
[1725610171656,7.7641,128.8,128.76,52.7662]
[1725610171964,7.7641,128.8,128.76,59.023]
[1725610172963,20.0,128.79,128.76,59.023]
[1725610173478,20.0,128.79,128.77,15.0493]
[1725610177104,27.7646,128.79,128.77,15.0493]
[1725610177468,27.7646,128.79,128.76,51.2568]
[1725610177666,27.7646,128.79,128.75,19.416]
[1725610177667,7.7654,128.78,128.75,19.416]
[1725610177889,20.0,128.79,128.74,24.331]
[1725610177890,7.7658,128.77,128.74,16.5638]
[1725610179078,7.766,128.77,128.74,16.5638]
[1725610179580,20.0,128.79,128.74,24.3313]
[1725610179581,7.7654,128.78,128.74,24.3313]
[1725610179768,20.0,128.77,128.74,24.3313]
[1725610179968,20.0,128.77,128.75,45.0]
[1725610180177,7.7654,128.78,128.75,45.0]
[1725610180703,20.0,128.77,128.75,45.0]
[1725610181198,7.7648,128.79,128.75,52.7668]
[1725610181403,19.4084,128.81,128.75,52.7668]
[1725610181404,7.7636,128.81,128.77,7.7656]
[1725610181604,7.7636,128.81,128.78,45.0]
[1725610183204,20.0,128.8,128.78,45.0]
[1725610184415,3.08941775,128.85,128.78,52.7651]
[1725610184416,7.763,128.82,128.78,52.7651]
[1725610184585,27.7634,128.81,128.78,52.7651]
[1725610184985,20.0,128.81,128.78,52.7651]
[1725610185186,7.7629,128.82,128.78,52.7651]
[1725610185385,20.0,128.81,128.78,52.7651]
[1725610185602,20.0,128.81,128.77,7.7657]
[1725610185800,7.764,128.8,128.77,7.7657]
[1725610186703,7.7645,128.79,128.76,19.4159]
[1725610186906,7.7642,128.8,128.76,27.182]
[1725610188402,7.7642,128.8,128.77,1.4142725]
[1725610188708,39.4067,128.83,128.78,7.765]
[1725610188709,7.7632,128.82,128.78,7.765]
[1725610189009,20.0,128.81,128.79,45.0]
[1725610189817,7.7623,128.83,128.79,45.0]
[1725610190208,7.7623,128.83,128.79,61.526]
[1725610190677,7.7619,128.84,128.79,61.526]
[1725610190881,22.41801693,128.86,128.79,61.526]
[1725610191680,7.7626,128.83,128.79,61.526]
[1725610191880,20.0,128.82,128.79,61.526]
[1725610192098,20.0,128.82,128.79,16.526]
[1725610192301,7.7635,128.81,128.79,16.526]
[1725610193623,27.763,128.82,128.79,16.526]
[1725610194210,27.763,128.82,128.79,17.93695189]
[1725610194514,27.763,128.82,128.8,1.41198853]
[1725610196017,27.763,128.82,128.79,16.526]
[1725610198714,27.763,128.82,128.8,0.45670063]
[1725610199523,27.763,128.82,128.79,16.526]
[1725610202319,7.7635,128.81,128.79,16.526]
[1725610202806,7.7643,128.8,128.76,24.93937021]
[1725610203007,7.7643,128.8,128.76,15.5021]
[1725610203407,7.7643,128.8,128.76,24.94635679]
[1725610203807,20.0,128.82,128.77,0.63199453]
[1725610203808,7.7637,128.81,128.77,0.63199453]
[1725610204022,27.764,128.8,128.77,45.0]
[1725610204721,7.7625,128.83,128.78,7.7651]
[1725610204912,0.8287083,128.87,128.8,7.7635]
[1725610204913,7.7611,128.85,128.8,7.7635]
[1725610205417,7.7611,128.85,128.81,45.0]
[1725610205818,0.8287083,128.87,128.81,45.0]
[1725610205819,7.7607,128.86,128.81,45.0]
[1725610206319,0.8287083,128.87,128.82,23.6847]
[1725610206320,8.5886083,128.87,128.82,23.6847]
[1725610206532,7.7605,128.86,128.83,45.0]
[1725610206703,0.8287083,128.87,128.82,15.922]
[1725610207304,7.7611,128.85,128.82,15.922]
[1725610207826,20.0,128.84,128.82,15.922]
[1725610209917,20.0,128.84,128.79,15.6211]
[1725610210132,7.7628,128.82,128.79,15.6211]
[1725610210423,7.7623,128.83,128.79,15.6211]
[1725610210628,20.0,128.82,128.79,15.6211]
[1725610211216,20.0,128.82,128.8,45.0]
[1725610211438,20.0,128.82,128.8,45.80952827]
[1725610211944,7.7617,128.84,128.8,45.80952827]
[1725610212117,20.0,128.83,128.8,45.0]
[1725610213917,7.7606,128.86,128.81,7.763]
[1725610214129,7.7606,128.86,128.82,45.0]
[1725610214329,8.5886083,128.87,128.82,45.0]
[1725610214721,8.5886083,128.87,128.82,52.7627]
[1725610215129,8.5886083,128.87,128.83,7.7617]
[1725610215130,0.8287083,128.87,128.83,7.7617]
[1725610215342,0.8287083,128.87,128.84,66.7705]
[1725610216552,20.8287083,128.87,128.84,66.7705]
[1725610216848,20.0,128.86,128.84,66.7705]
[1725610217152,20.0,128.86,128.84,15.1929]
[1725610217381,0.8287083,128.87,128.81,6.1966]
[1725610217659,0.8287083,128.87,128.8,15.8267]
[1725610218222,7.7632,128.82,128.8,15.8267]
[1725610218436,38.8035,128.86,128.76,25.40043158]
[1725610218659,7.7653,128.78,128.76,15.9428]
[1725610218832,27.7659,128.77,128.72,35.3634]
[1725610219044,27.7659,128.77,128.72,44.82103158]
[1725610219652,20.0,128.77,128.72,15.9428]
[1725610219837,20.0,128.8,128.72,15.9428]
[1725610221269,7.767,128.75,128.72,15.9428]
[1725610222126,20.0,128.8,128.72,15.9428]
[1725610222332,20.0,128.8,128.73,45.0]
[1725610223353,7.7659,128.77,128.73,45.0]
[1725610223560,20.0,128.76,128.73,45.0]
[1725610223729,20.0,128.76,128.74,1.54654488]
[1725610224332,20.0,128.76,128.73,45.0]
[1725610224943,27.7664,128.76,128.73,45.0]
[1725610225157,7.767,128.75,128.72,25.4232625]
[1725610225456,7.767,128.75,128.72,15.9428]
[1725610225980,27.7664,128.76,128.72,15.9428]
[1725610226150,27.7664,128.76,128.73,45.0]
[1725610226753,20.0,128.76,128.73,45.0]
[1725610228342,27.7667,128.76,128.73,45.0]
[1725610229962,27.7667,128.76,128.72,15.9428]
[1725610229963,7.767,128.75,128.72,15.9428]
[1725610230464,7.7677,128.74,128.69,23.7427]
[1725610231464,7.767,128.75,128.7,7.7695]
[1725610231763,20.0,128.76,128.71,45.0]
[1725610232058,20.0,128.78,128.71,45.0]
[1725610233160,7.765,128.79,128.74,7.7672]
[1725610233351,7.765,128.79,128.75,45.84050161]
[1725610234665,20.0,128.78,128.75,45.84050161]
[1725610236063,20.0,128.78,128.75,53.60740161]
[1725610236445,20.0,128.79,128.75,53.60740161]
[1725610236642,7.7636,128.81,128.76,19.4158]
[1725610236848,10.83816928,128.82,128.77,45.84041873]
[1725610237148,7.7624,128.83,128.78,27.1775]
[1725610237347,7.7624,128.83,128.79,45.96144403]
[1725610237557,7.7624,128.83,128.8,0.96244649]
[1725610237762,7.7616,128.84,128.8,0.96244649]
[1725610238169,7.7622,128.83,128.8,0.96244649]
[1725610238356,7.7622,128.83,128.79,45.0]
[1725610238560,7.7643,128.8,128.75,27.1826]
[1725610238746,7.7643,128.8,128.76,45.0]
[1725610239162,7.7643,128.8,128.76,52.7663]
[1725610239472,7.7635,128.81,128.76,52.7663]
[1725610240354,19.4069,128.82,128.74,21.4974]
[1725610240669,7.7647,128.79,128.74,29.2649]
[1725610240853,20.0,128.78,128.74,29.2649]
[1725610241448,7.7647,128.79,128.75,7.7669]
[1725610241661,7.7638,128.81,128.76,27.1818]